{"text_format":"1","workbook":"xlsx","n_sheets":3,"sheets":["使い方","ジョギング管理表","database"],"not_rendered":{"charts":3,"images":4,"macros":0,"external_links":0,"defined_names":2,"comments":0,"pivot_tables":0},"unopened":[],"bounds":{"document_bytes":16777216,"sheet_cells":100000,"rows_first":2000,"rows_last":500,"rows_between":2000,"halvings":0,"cell_chars":16384,"cell_head_chars":4096},"cells_cut":0,"cells_raw":0,"read":"whole","date_system":"1900"}

{"sheet":"使い方","index":0,"n_rows":34,"n_cols":33,"rows_kept":34,"cut":false,"hidden":false,"merged":[[53,1,55,4],[53,5,55,6],[53,7,55,27],[32,25,32,27],[33,25,34,25],[33,26,34,26],[33,27,34,27],[48,1,50,4],[48,5,50,7],[48,8,50,27],[24,25,24,27],[25,25,26,26],[25,27,26,27],[28,25,28,27],[29,25,30,26],[29,27,30,27],[16,25,16,27],[17,25,18,26],[17,27,18,27],[20,25,20,27],[21,25,22,26],[21,27,22,27],[2,1,2,6],[2,9,2,14],[2,17,2,22],[12,25,12,27],[13,25,14,26],[13,27,14,27]]}
[]
[]
[]
[null,null,null,null,null,null,null,null,null,null,null,null,null,null,null,null,null,null,null,null,null,null,null,null,null,null,null,null,null,null,{"$f":"E5*F5","v":0},{"$f":"M5*N5","v":0},{"$f":"U5*V5","v":0}]
[null,null,null,null,null,null,null,null,null,null,null,null,null,null,null,null,null,null,null,null,null,null,null,null,null,null,null,null,null,null,{"$f":"E6*F6","v":0},{"$f":"M6*N6","v":0},{"$f":"U6*V6","v":0}]
[null,null,null,null,null,null,null,null,null,null,null,null,null,null,null,null,null,null,null,null,null,null,null,null,null,null,null,null,null,null,{"$f":"E7*F7","v":0},0,0]
[null,null,null,null,null,null,null,null,null,null,null,null,null,null,null,null,null,null,null,null,null,null,null,null,null,null,null,null,null,null,0,0,0]
[null,null,null,null,null,null,null,null,null,null,null,null,null,null,null,null,null,null,null,null,null,null,null,null,null,null,null,null,null,null,0,0,0]
[null,null,null,null,null,null,null,null,null,null,null,null,null,null,null,null,null,null,null,null,null,null,null,null,null,null,null,null,null,null,0,0,0]
[null,null,null,null,null,null,null,null,null,null,null,null,null,null,null,null,null,null,null,null,null,null,null,null,null,null,null,null,null,null,0,0,0]
[null,null,null,null,null,null,null,null,null,null,null,null,null,null,null,null,null,null,null,null,null,null,null,null,null,null,null,null,null,null,0,0,0]
[null,null,null,null,null,null,null,null,null,null,null,null,null,null,null,null,null,null,null,null,null,null,null,null,null,null,null,null,null,null,0,0,0]
[null,null,null,null,null,null,null,null,null,null,null,null,null,null,null,null,null,null,null,null,null,null,null,null,null,null,null,null,null,null,0,0,0]
[null,null,null,null,null,null,null,null,null,null,null,null,null,null,null,null,null,null,null,null,null,null,null,null,null,null,null,null,null,null,0,0,0]
[null,null,null,null,null,null,null,null,null,null,null,null,null,null,null,null,null,null,null,null,null,null,null,null,null,null,null,null,null,null,0,0,0]
[null,null,null,null,null,null,null,null,null,null,null,null,null,null,null,null,null,null,null,null,null,null,null,null,null,null,null,null,null,null,0,0,0]
[null,null,null,null,null,null,null,null,null,null,null,null,null,null,null,null,null,null,null,null,null,null,null,null,null,null,null,null,null,null,0,0,0]
[null,null,null,null,null,null,null,null,null,null,null,null,null,null,null,null,null,null,null,null,null,null,null,null,null,null,null,null,null,null,0,0,0]
[null,null,null,null,null,null,null,null,null,null,null,null,null,null,null,null,null,null,null,null,null,null,null,null,null,null,null,null,null,null,0,0,0]
[null,null,null,null,null,null,null,null,null,null,null,null,null,null,null,null,null,null,null,null,null,null,null,null,null,null,null,null,null,null,0,0,0]
[null,null,null,null,null,null,null,null,null,null,null,null,null,null,null,null,null,null,null,null,null,null,null,null,null,null,null,null,null,null,0,0,0]
[null,null,null,null,null,null,null,null,null,null,null,null,null,null,null,null,null,null,null,null,null,null,null,null,null,null,null,null,null,null,0,0,0]
[null,null,null,null,null,null,null,null,null,null,null,null,null,null,null,null,null,null,null,null,null,null,null,null,null,null,null,null,null,null,0,0,0]
[null,null,null,null,null,null,null,null,null,null,null,null,null,null,null,null,null,null,null,null,null,null,null,null,null,null,null,null,null,null,0,0,0]
[null,null,null,null,null,null,null,null,null,null,null,null,null,null,null,null,null,null,null,null,null,null,null,null,null,null,null,null,null,null,0,0,0]
[null,null,null,null,null,null,null,null,null,null,null,null,null,null,null,null,null,null,null,null,null,null,null,null,null,null,null,null,null,null,0,0,0]
[null,null,null,null,null,null,null,null,null,null,null,null,null,null,null,null,null,null,null,null,null,null,null,null,null,null,null,null,null,null,0,0,0]
[null,null,null,null,null,null,null,null,null,null,null,null,null,null,null,null,null,null,null,null,null,null,null,null,null,null,null,null,null,null,0,0,0]
[null,null,null,null,null,null,null,null,null,null,null,null,null,null,null,null,null,null,null,null,null,null,null,null,null,null,null,null,null,null,0,0,0]
[null,null,null,null,null,null,null,null,null,null,null,null,null,null,null,null,null,null,null,null,null,null,null,null,null,null,null,null,null,null,0,0,0]
[null,null,null,null,null,null,null,null,null,null,null,null,null,null,null,null,null,null,null,null,null,null,null,null,null,null,null,null,null,null,0,0,0]
[null,null,null,null,null,null,null,null,null,null,null,null,null,null,null,null,null,null,null,null,null,null,null,null,null,null,null,null,null,null,0,0,0]
[null,null,null,null,null,null,null,null,null,null,null,null,null,null,null,null,null,null,null,null,null,null,null,null,null,null,null,null,null,null,0,0,0]
[null,null,null,null,null,null,null,null,null,null,null,null,null,null,null,null,null,null,null,null,null,null,null,null,null,null,null,null,null,null,0,0,0]

{"sheet":"ジョギング管理表","index":1,"n_rows":142,"n_cols":33,"rows_kept":142,"cut":false,"hidden":false,"merged":[[0,0,0,27],[12,25,12,27],[13,25,14,26],[13,27,14,27],[29,27,30,27],[28,25,28,27],[3,23,6,27],[8,25,8,27],[9,25,10,26],[9,27,10,27],[62,26,72,27],[29,25,30,25],[29,26,30,26],[24,25,24,27],[25,25,26,26],[25,27,26,27],[20,25,20,27],[21,25,22,26],[21,27,22,27],[16,25,16,27],[17,25,18,26],[17,27,18,27],[131,26,141,27],[32,1,35,5],[32,7,35,12],[32,14,35,20],[39,1,39,7],[74,1,74,7],[109,1,109,7],[97,26,107,27]]}
["ジョギング時間管理表"]
[]
[]
[null,null,null,null,null,null,null,null,null,null,null,null,null,null,null,null,null,null,null,null,null,null,null,"品川駅に到着しました！",null,null,null,null,null,null,{"$f":"E42*F42","v":195},{"$f":"E77*F77","v":0},{"$f":"E112*F112","v":0}]
[null,null,null,null,null,null,null,null,null,null,null,null,null,null,null,null,null,null,null,null,null,null,null,null,null,null,null,null,null,null,65,0,0]
[null,null,null,null,null,null,null,null,null,null,null,null,null,null,null,null,null,null,null,null,null,null,null,null,null,null,null,null,null,null,64,0,0]
[null,null,null,null,null,null,null,null,null,null,null,null,null,null,null,null,null,null,null,null,null,null,null,null,null,null,null,null,null,null,0,0,0]
[null,null,null,null,null,null,null,null,null,null,null,null,null,null,null,null,null,null,null,null,null,null,null,null,null,null,null,null,null,null,0,0,0]
[null,null,null,null,null,null,null,null,null,null,null,null,null,null,null,null,null,null,null,null,null,null,null,null,null,"始める前の体重",null,null,null,null,0,0,0]
[null,null,null,null,null,null,null,null,null,null,null,null,null,null,null,null,null,null,null,null,null,null,null,null,null,65,null,"kg",null,null,0,0,0]
[null,null,null,null,null,null,null,null,null,null,null,null,null,null,null,null,null,null,null,null,null,null,null,null,null,null,null,null,null,null,0,0,0]
[null,null,null,null,null,null,null,null,null,null,null,null,null,null,null,null,null,null,null,null,null,null,null,null,null,null,null,null,null,null,0,0,0]
[null,null,null,null,null,null,null,null,null,null,null,null,null,null,null,null,null,null,null,null,null,null,null,null,null,"目標体重",null,null,null,null,0,0,0]
[null,null,null,null,null,null,null,null,null,null,null,null,null,null,null,null,null,null,null,null,null,null,null,null,null,53,null,"kg",null,null,0,0,0]
[null,null,null,null,null,null,null,null,null,null,null,null,null,null,null,null,null,null,null,null,null,null,null,null,null,null,null,null,null,null,0,0,0]
[null,null,null,null,null,null,null,null,null,null,null,null,null,null,null,null,null,null,null,null,null,null,null,null,null,null,null,null,null,null,0,0,0]
[null,null,null,null,null,null,null,null,null,null,null,null,null,null,null,null,null,null,null,null,null,null,null,null,null,"計測日数",null,null,null,null,0,0,0]
[null,null,null,null,null,null,null,null,null,null,null,null,null,null,null,null,null,null,null,null,null,null,null,null,null,{"$f":"COUNT(D42:D72,D77:D107,D112:D142)","v":3},null,"日",null,null,0,0,0]
[null,null,null,null,null,null,null,null,null,null,null,null,null,null,null,null,null,null,null,null,null,null,null,null,null,null,null,null,null,null,0,0,0]
[null,null,null,null,null,null,null,null,null,null,null,null,null,null,null,null,null,null,null,null,null,null,null,null,null,null,null,null,null,null,0,0,0]
[null,null,null,null,null,null,null,null,null,null,null,null,null,null,null,null,null,null,null,null,null,null,null,null,null,"今までの走行時間",null,null,null,null,0,0,0]
[null,null,null,null,null,null,null,null,null,null,null,null,null,null,null,null,null,null,null,null,null,null,null,null,null,{"$f":"SUM(D42:D72,D77:D107,D112:D142)","v":170},null,"分",null,null,0,0,0]
[null,null,null,null,null,null,null,null,null,null,null,null,null,null,null,null,null,null,null,null,null,null,null,null,null,null,null,null,null,null,0,0,0]
[null,null,null,null,null,null,null,null,null,null,null,null,null,null,null,null,null,null,null,null,null,null,null,null,null,null,null,null,null,null,0,0,0]
[null,null,null,null,null,null,null,null,null,null,null,null,null,null,null,null,null,null,null,null,null,null,null,null,null,"今までの走行距離",null,null,null,null,0,0,0]
[null,null,null,null,null,null,null,null,null,null,null,null,null,null,null,null,null,null,null,null,null,null,null,null,null,{"$f":"SUM(E42:E72,E77:E107,E112:E142)","v":5},null,"km",null,null,0,0,0]
[null,null,null,null,null,null,null,null,null,null,null,null,null,null,null,null,null,null,null,null,null,null,null,null,null,null,null,null,null,null,0,0,0]
[null,null,null,null,null,null,null,null,null,null,null,null,null,null,null,null,null,null,null,null,null,null,null,null,null,null,null,null,null,null,0,0,0]
[null,null,null,null,null,null,null,null,null,null,null,null,null,null,null,null,null,null,null,null,null,null,null,null,null,"今までの消費カロリー",null,null,null,null,0,0,0]
[null,null,null,null,null,null,null,null,null,null,null,null,null,null,null,null,null,null,null,null,null,null,null,null,null,"約",{"$f":"SUM(H42:H72,H77:H107,H112:H142)","v":378.5},"kcal",null,null,0,0,0]
[null,null,null,null,null,null,null,null,null,null,null,null,null,null,null,null,null,null,null,null,null,null,null,null,null,null,null,null,null,null,0,0,0]
[null,null,null,null,null,null,null,null,null,null,null,null,null,null,null,null,null,null,null,null,null,null,null,null,null,null,null,null,null,null,0,0,0]
[null,"6月をみる",null,null,null,null,null,"7月をみる",null,null,null,null,null,null,"8月をみる",null,null,null,null,null,null,null,null,null,null,null,null,null,null,null,0,0,0]
[null,null,null,null,null,null,null,null,null,null,null,null,null,null,null,null,null,null,null,null,null,null,null,null,null,null,null,null,null,null,0,0,0]
[]
[]
[]
[]
[]
[null,"6月"]
[null,"日付","曜日","走行時間（分）","走行距離（km）","体重(kg)","増減","消費カロリー"]
[null,1,"水",90,3,65,null,{"$f":"IF(D42=\"\",\"\",F42*E42*(D42/60))","v":292.5}]
[null,2,"木",40,1,65,{"$f":"IF(F43=\"\",\"\",F43-F42)","v":0},{"$f":"IF(D43=\"\",\"\",F43*E43*(D43/60))","v":43.333333333333329}]
[null,3,"金",40,1,64,{"$f":"IF(F44=\"\",\"\",F44-F43)","v":-1},42.666666666666664]
[null,4,"土",null,null,null,{"$f":"IF(F45=\"\",\"\",F45-F44)","v":""},""]
[null,5,"日",null,null,null,{"$f":"IF(F46=\"\",\"\",F46-F45)","v":""},""]
[null,6,"月",null,null,null,"",""]
[null,7,"火",null,null,null,"",""]
[null,8,"水",null,null,null,"",""]
[null,9,"木",null,null,null,"",""]
[null,10,"金",null,null,null,"",""]
[null,11,"土",null,null,null,"",""]
[null,12,"日",null,null,null,"",""]
[null,13,"月",null,null,null,"",""]
[null,14,"火",null,null,null,"",""]
[null,15,"水",null,null,null,"",""]
[null,16,"木",null,null,null,"",""]
[null,17,"金",null,null,null,"",""]
[null,18,"土",null,null,null,"",""]
[null,19,"日",null,null,null,"",""]
[null,20,"月",null,null,null,"",""]
[null,21,"火",null,null,null,"",""]
[null,22,"水",null,null,null,"","",null,null,null,null,null,null,null,null,null,null,null,null,null,null,null,null,null,null,"路線図をみる"]
[null,23,"木",null,null,null,"",""]
[null,24,"金",null,null,null,"",""]
[null,25,"土",null,null,null,"",""]
[null,26,"日",null,null,null,"",""]
[null,27,"月",null,null,null,"",""]
[null,28,"火",null,null,null,"",""]
[null,29,"水",null,null,null,"",""]
[null,30,"木",null,null,null,"",""]
[null,31,{"$f":"IF(F72=\"\",\"\",F72-F71)","v":""},null,null,null,null,""]
[]
[]
[null,"7月"]
[null,"日付","曜日","走行時間（分）","走行距離（km）","体重(kg)","増減","消費カロリー"]
[null,1,"金",null,null,null,{"$f":"IF(F77=\"\",\"\",F77-F71)","v":""},{"$f":"IF(D77=\"\",\"\",F77*E77*(D77/60))","v":""}]
[null,2,"土",null,null,null,{"$f":"IF(F78=\"\",\"\",F78-F77)","v":""},{"$f":"IF(D78=\"\",\"\",F78*E78*(D78/60))","v":""}]
[null,3,"日",null,null,null,{"$f":"IF(F79=\"\",\"\",F79-F78)","v":""},""]
[null,4,"月",null,null,null,{"$f":"IF(F80=\"\",\"\",F80-F79)","v":""},""]
[null,5,"火",null,null,null,{"$f":"IF(F81=\"\",\"\",F81-F80)","v":""},""]
[null,6,"水",null,null,null,"",""]
[null,7,"木",null,null,null,"",""]
[null,8,"金",null,null,null,"",""]
[null,9,"土",null,null,null,"",""]
[null,10,"日",null,null,null,"",""]
[null,11,"月",null,null,null,"",""]
[null,12,"火",null,null,null,"",""]
[null,13,"水",null,null,null,"",""]
[null,14,"木",null,null,null,"",""]
[null,15,"金",null,null,null,"",""]
[null,16,"土",null,null,null,"",""]
[null,17,"日",null,null,null,"",""]
[null,18,"月",null,null,null,"",""]
[null,19,"火",null,null,null,"",""]
[null,20,"水",null,null,null,"",""]
[null,21,"木",null,null,null,"",""]
[null,22,"金",null,null,null,"","",null,null,null,null,null,null,null,null,null,null,null,null,null,null,null,null,null,null,"路線図をみる"]
[null,23,"土",null,null,null,"",""]
[null,24,"日",null,null,null,"",""]
[null,25,"月",null,null,null,"",""]
[null,26,"火",null,null,null,"",""]
[null,27,"水",null,null,null,"",""]
[null,28,"木",null,null,null,"",""]
[null,29,"金",null,null,null,"",""]
[null,30,"土",null,null,null,"",""]
[null,31,"日",null,null,null,null,""]
[]
[]
[null,"8月"]
[null,"日付","曜日","走行時間（分）","走行距離（km）","体重(kg)","増減","消費カロリー"]
[null,1,"月",null,null,null,{"$f":"IF(F112=\"\",\"\",F112-F107)","v":""},{"$f":"IF(D112=\"\",\"\",F112*E112*(D112/60))","v":""}]
[null,2,"火",null,null,null,{"$f":"IF(F113=\"\",\"\",F113-F112)","v":""},{"$f":"IF(D113=\"\",\"\",F113*E113*(D113/60))","v":""}]
[null,3,"水",null,null,null,{"$f":"IF(F114=\"\",\"\",F114-F113)","v":""},""]
[null,4,"木",null,null,null,{"$f":"IF(F115=\"\",\"\",F115-F114)","v":""},""]
[null,5,"金",null,null,null,{"$f":"IF(F116=\"\",\"\",F116-F115)","v":""},""]
[null,6,"土",null,null,null,"",""]
[null,7,"日",null,null,null,"",""]
[null,8,"月",null,null,null,"",""]
[null,9,"火",null,null,null,"",""]
[null,10,"水",null,null,null,"",""]
[null,11,"木",null,null,null,"",""]
[null,12,"金",null,null,null,"",""]
[null,13,"土",null,null,null,"",""]
[null,14,"日",null,null,null,"",""]
[null,15,"月",null,null,null,"",""]
[null,16,"火",null,null,null,"",""]
[null,17,"水",null,null,null,"",""]
[null,18,"木",null,null,null,"",""]
[null,19,"金",null,null,null,"",""]
[null,20,"土",null,null,null,"",""]
[null,21,"日",null,null,null,"","",null,null,null,null,null,null,null,null,null,null,null,null,null,null,null,null,null,null,"路線図をみる"]
[null,22,"月",null,null,null,"",""]
[null,23,"火",null,null,null,"",""]
[null,24,"水",null,null,null,"",""]
[null,25,"木",null,null,null,"",""]
[null,26,"金",null,null,null,"",""]
[null,27,"土",null,null,null,"",""]
[null,28,"日",null,null,null,"",""]
[null,29,"月",null,null,null,"",""]
[null,30,"火",null,null,null,"",""]
[null,31,"水",null,null,null,null,""]

{"sheet":"database","index":2,"n_rows":67,"n_cols":4,"rows_kept":67,"cut":false,"hidden":false,"merged":[]}
[]
[null,{"$f":"ジョギング管理表!Z22","v":170},"現在地→",{"$f":"VLOOKUP(B2,B4:D67,3,1)","v":"品川駅まで、半分をすぎました。"}]
[]
[null,0,"東京駅","走行時間を入力したらスタートします！"]
[null,1,null,"東京駅から新大阪駅に向かいます。"]
[null,40,null,"東京駅を出発しました。次は品川駅です。"]
[null,113,null,"品川駅まで、半分をすぎました。"]
[null,225,"品川駅","品川駅に到着しました！"]
[null,265,null,"品川駅を出発しました。次は新横浜駅です。"]
[null,338,null,"新横浜駅まで半分をすぎました。"]
[null,450,"新横浜駅","新横浜駅に到着しました！"]
[null,490,null,"新横浜駅を出発しました。次は小田原駅です。"]
[null,563,null,"小田原駅まで半分をすぎました。"]
[null,603,null,"小田原駅まで、あと少しです。"]
[null,675,"小田原駅","小田原駅に到着しました！"]
[null,715,null,"小田原駅を出発しました。次は熱海駅です。"]
[null,828,null,"熱海駅まで半分をすぎました。"]
[null,860,null,"熱海駅まで、あと少しです。"]
[null,900,"熱海駅","熱海駅に到着しました！"]
[null,940,null,"熱海駅を出発しました。次は三島駅です。"]
[null,1053,null,"三島駅まで半分をすぎました。"]
[null,1085,null,"三島駅まで、あと少しです。"]
[null,1125,"三島駅","三島駅に到着しました！"]
[null,1165,null,"三島駅を出発しました。次は新富士駅です。"]
[null,1278,null,"新富士駅まで半分をすぎました。"]
[null,1310,null,"新富士駅まで、あと少しです。"]
[null,1350,"新富士駅","新富士駅に到着しました！"]
[null,1390,null,"新富士駅を出発しました。次は静岡駅です。"]
[null,1503,null,"静岡駅まで半分をすぎました。"]
[null,1535,null,"静岡駅まで、あと少しです。"]
[null,1575,"静岡駅","静岡駅に到着しました！"]
[null,1615,null,"静岡駅を出発しました。次は掛川駅です。"]
[null,1688,null,"掛川駅まで半分をすぎました。"]
[null,1760,null,"掛川駅まで、あと少しです。"]
[null,1800,"掛川駅","掛川駅に到着しました！"]
[null,1840,null,"掛川駅を出発しました。次は浜松駅です。"]
[null,1913,null,"浜松駅まで半分をすぎました。"]
[null,1985,null,"浜松駅まで、あと少しです。"]
[null,2025,"浜松駅","浜松駅に到着しました！"]
[null,2065,null,"浜松駅を出発しました。次は豊橋駅です。"]
[null,2138,null,"豊橋駅まで半分をすぎました。"]
[null,2210,null,"豊橋駅まで、あと少しです。"]
[null,2250,"豊橋駅","豊橋駅に到着しました！"]
[null,2290,null,"豊橋駅を出発しました。次は三河安城駅です。"]
[null,2363,null,"三河安城駅まで半分をすぎました。"]
[null,2435,null,"三河安城駅まで、あと少しです。"]
[null,2475,"三河安城駅","三河安城駅に到着しました！"]
[null,2515,null,"三河安城駅を出発しました。次は名古屋駅です。"]
[null,2588,null,"名古屋駅まで半分をすぎました。"]
[null,2660,null,"名古屋駅まであと少しです。"]
[null,2700,"名古屋駅","名古屋駅に到着しました！"]
[null,2740,null,"名古屋駅を出発しました。次は岐阜羽島駅です。"]
[null,2813,null,"岐阜羽島駅まで半分をすぎました。"]
[null,2885,null,"岐阜羽島駅まで、あと少しです。"]
[null,2925,"岐阜羽島駅","岐阜羽島駅に到着しました！"]
[null,2965,null,"岐阜羽島駅を出発しました。次は米原駅です。"]
[null,3038,null,"米原駅まで半分をすぎました。"]
[null,3110,null,"米原駅まで、あと少しです。"]
[null,3150,"米原駅","米原駅に到着しました！"]
[null,3190,null,"米原駅を出発しました。次は京都駅です。"]
[null,3263,null,"京都駅まで半分をすぎました。"]
[null,3335,null,"京都駅まで、あと少しです。"]
[null,3375,"京都駅","京都駅に到着しました！"]
[null,3415,null,"京都駅を出発しました。次は新大阪駅です。"]
[null,3488,null,"新大阪駅まで半分をすぎました。"]
[null,3560,null,"新大阪駅まで、あと少しです。"]
[null,3600,"新大阪駅","おめでとうございます！新大阪駅に到着しました！！"]